[Event "IIFL Wealth 4th Mumbai GM"]
[Site "Mumbai"]
[Date "2018.12.30"]
[Round "1"]
[White "Mehdi Hasan Parag"]
[Black "Deepan Chakkravarthy J."]
[Result "0-1"]
[ECO "C55"]
[WhiteElo "2218"]
[BlackElo "2550"]
[Annotator "ChessBase"]
[PlyCount "102"]
[EventDate "2018.12.30"]
[EventType "swiss"]
[EventCountry "IND"]
[SourceTitle "playchess.com"]
[Source "ChessBase"]
[SourceQuality "1"]
[TimeControl "40/5400+30:1800+30"]

1. e4 {[%emt 0:00:00]} e5 {[%emt 0:00:00]} 2. Nf3 {[%emt 0:00:00]} Nc6 {[%emt 0:00:00]} 3. Bc4 {[%emt 0:00:04]} Nf6 {[%emt 0:00:00]} 4. d3 {[%emt 0:00:14]} h6 {[%emt 0:00:00]} 5. a4 {[%emt 0:00:35]} Bc5 {[%emt 0:00:58]} 6. O-O {[%emt 0:00:19]} d6 {[%emt 0:00:16]} 7. c3 {[%emt 0:01:02]} a6 {[%emt 0:00:07]} 8. Re1 {[%emt 0:00:09]} Ba7 {[%emt 0:00:06]} 9. Nbd2 {[%emt 0:00:12]} g5 {[%emt 0:00:06]} 10. Nf1 {[%emt 0:05:34]} g4 {[%emt 0:00:12]} 11. N3d2 {[%emt 0:02:26]} h5 {[%emt 0:00:01]} 12. Nb3 {[%emt 0:00:40]} Rg8 {[%emt 0:16:37]} 13. Be3 {[%emt 0:02:17]} Bxe3 {[%emt 0:02:30]} 14. Rxe3 {[%emt 0:01:45]} h4 {[%emt 0:00:11]} 15. d4 {[%emt 0:03:41]} Nh5 {[%emt 0:06:18]} 16. Bd5 {[%emt 0:07:04]} Qg5 {[%emt 0:03:19]} 17. Bxc6+ {[%emt 0:02:30]} bxc6 {[%emt 0:00:02]} 18. dxe5 {[%emt 0:00:20]} Qxe5 {[%emt 0:00:03]} 19. Qd4 {[%emt 0:05:12]} Rg5 {[%emt 0:00:06]} 20. Qxe5+ {[%emt 0:01:50]} Rxe5 {[%emt 0:00:03]} 21. Nbd2 {[%emt 0:08:27]} Rb8 {[%emt 0:13:33]} 22. b3 {[%emt 0:01:41]} Be6 {[%emt 0:01:45]} 23. c4 {[%emt 0:03:12]} a5 {[%emt 0:00:28]} 24. Rae1 {[%emt 0:05:08]} Kd7 {[%emt 0:05:38]} 25. f3 {[%emt 0:02:16]} g3 {[%emt 0:03:06]} 26. hxg3 {[%emt 0:04:24]} hxg3 {[%emt 0:00:02]} 27. Nxg3 {[%emt 0:01:26]} Nxg3 {[%emt 0:00:42]} 28. f4 {[%emt 0:00:09]} Nf5 {[%emt 0:08:46]} 29. Rf3 {[%emt 0:11:58]} Nh4 {[%emt 0:06:18]} 30. fxe5 {[%emt 0:00:20]} Nxf3+ {[%emt 0:00:03]} 31. gxf3 {[%emt 0:00:48]} dxe5 {[%emt 0:00:05]} 32. Kf2 {[%emt 0:02:42]} Kd6 {[%emt 0:01:30]} 33. Rh1 {[%emt 0:01:46]} Kc5 {[%emt 0:00:46]} 34. Ke3 {[%emt 0:00:03]} Rd8 {[%emt 0:03:37]} 35. Rh5 {[%emt 0:04:34]} Kb4 {[%emt 0:00:02]} 36. Rxe5 {[%emt 0:00:54]} Kc3 {[%emt 0:00:01]} 37. Nf1 {[%emt 0:01:00]} Kxb3 {[%emt 0:10:54]} 38. Rxa5 {[%emt 0:00:23]} Kxc4 {[%emt 0:00:49]} 39. Ra7 {[%emt 0:01:37]} c5 {[%emt 0:17:42]} 40. Nd2+ {[%emt 0:00:00]} Kc3 {[%emt 0:00:00]} 41. Nb1+ {[%emt 0:06:27]} Kc2 {[%emt 0:03:32]} 42. Rxc7 {[%emt 0:05:41]} Kxb1 {[%emt 0:13:31]} 43. Rxc5 {[%emt 0:00:08]} Kb2 {[%emt 0:00:04]} 44. f4 {[%emt 0:04:45]} Kb3 {[%emt 0:00:06]} 45. f5 {[%emt 0:00:42]} Bc4 {[%emt 0:00:08]} 46. Kf4 {[%emt 0:03:29]} Rd4 {[%emt 0:03:41]} 47. a5 {[%emt 0:02:39]} Kb4 {[%emt 0:02:33]} 48. Rc7 {[%emt 0:00:38]} Rd6 {[%emt 0:00:09]} 49. e5 {[%emt 0:04:42]} Ra6 {[%emt 0:00:05]} 50. e6 {[%emt 0:01:50]} fxe6 {[%emt 0:00:04]} 51. f6 {[%emt 0:00:15]} Rxa5 {[%emt 0:00:15]} 0-1

[Event "IIFL Wealth 4th Mumbai GM"]
[Site "Mumbai"]
[Date "2018.12.30"]
[Round "1"]
[White "Aaryan Varshney"]
[Black "Movsziszian, Karen"]
[Result "1-0"]
[ECO "B06"]
[WhiteElo "2200"]
[BlackElo "2505"]
[Annotator "ChessBase"]
[PlyCount "42"]
[EventDate "2018.12.30"]
[EventType "swiss"]
[EventCountry "IND"]
[SourceTitle "playchess.com"]
[Source "ChessBase"]
[SourceQuality "1"]
[TimeControl "40/5400+30:1800+30"]

1. d4 {[%emt 0:00:00]} d6 {[%emt 0:00:00]} 2. e4 {[%emt 0:00:00]} g6 {[%emt 0:00:00]} 3. Nc3 {[%emt 0:00:00]} Bg7 {[%emt 0:00:00]} 4. Nf3 {[%emt 0:00:00]} a6 {[%emt 0:00:16]} 5. a4 {[%emt 0:00:04]} b6 {[%emt 0:00:57]} 6. Bd3 {[%emt 0:01:44]} Nc6 {[%emt 0:08:40]} 7. Be3 {[%emt 0:04:07]} Nf6 {[%emt 0:05:31]} 8. h3 {[%emt 0:02:53]} e5 {[%emt 0:10:08]} 9. dxe5 {[%emt 0:04:55]} dxe5 {[%emt 0:00:02]} 10. Bc4 {[%emt 0:00:45]} Bd7 {[%emt 0:18:35]} 11. O-O {[%emt 0:01:42]} O-O {[%emt 0:05:09]} 12. Qd2 {[%emt 0:02:28]} Qc8 {[%emt 0:02:31]} 13. Rfd1 {[%emt 0:04:27]} Re8 {[%emt 0:12:57]} 14. Ng5 {[%emt 0:02:24]} Nd8 {[%emt 0:00:49]} 15. Nd5 {[%emt 0:02:02]} Be6 {[%emt 0:04:05]} 16. Nxf6+ {[%emt 0:01:48]} Bxf6 {[%emt 0:00:04]} 17. Nxe6 {[%emt 0:00:12]} Nxe6 {[%emt 0:00:02]} 18. Qd7 {[%emt 0:04:44]} Qb8 {[%emt 0:00:03]} 19. Qc6 {[%emt 0:03:22]} Re7 {[%emt 0:00:01]} 20. Bd5 {[%emt 0:00:59]} Ra7 {[%emt 0:00:05]} 21. a5 {[%emt 0:00:22]} Qd8 1-0

[Event "IIFL Wealth 4th Mumbai GM"]
[Site "Mumbai"]
[Date "2018.12.30"]
[Round "1"]
[White "Phadke Sohan"]
[Black "Rahman, Ziaur"]
[Result "*"]
[ECO "B06"]
[WhiteElo "2191"]
[BlackElo "2468"]
[Annotator "ChessBase"]
[PlyCount "32"]
[EventDate "2018.12.30"]
[EventType "swiss"]
[EventCountry "IND"]
[SourceTitle "playchess.com"]
[Source "ChessBase"]
[SourceQuality "1"]
[TimeControl "40/5400+30:1800+30"]

1. e4 {[%emt 0:01:40]} g6 {[%emt 0:02:39]} 2. d4 {[%emt 0:00:15]} Bg7 {[%emt 0:00:15]} 3. Nc3 {[%emt 0:00:18]} d6 {[%emt 0:00:52]} 4. f4 {[%emt 0:01:31]} Nf6 {[%emt 0:03:48]} 5. Nf3 {[%emt 0:00:29]} O-O {[%emt 0:02:49]} 6. Be3 {[%emt 0:07:54]} b6 {[%emt 0:01:09]} 7. Qd2 {[%emt 0:00:34]} Bb7 {[%emt 0:02:53]} 8. Bd3 {[%emt 0:08:41]} c5 {[%emt 0:02:19]} 9. e5 {[%emt 0:22:00]} cxd4 {[%emt 0:07:04]} 10. Bxd4 {[%emt 0:00:28]} dxe5 {[%emt 0:00:55]} 11. fxe5 {[%emt 0:00:41]} Ne8 {[%emt 0:11:57]} 12. Qe3 {[%emt 0:13:24]} Nc6 {[%emt 0:05:22]} 13. Rd1 {[%emt 0:01:24]} Nxd4 {[%emt 0:03:48]} 14. Nxd4 {[%emt 0:00:11]} Qc7 {[%emt 0:06:51]} 15. Nf3 {[%emt 0:09:53]} Bxf3 {[%emt 0:05:18]} 16. Qxf3 {[%emt 0:00:19]} Rd8 {[%emt 0:00:35]} *

[Event "IIFL Wealth 4th Mumbai GM"]
[Site "Mumbai"]
[Date "2018.12.30"]
[Round "1"]
[White "Phadke Sohan"]
[Black "Rahman, Ziaur"]
[Result "0-1"]
[ECO "B09"]
[WhiteElo "2191"]
[BlackElo "2468"]
[Annotator "ChessBase"]
[PlyCount "74"]
[EventDate "2018.12.30"]
[EventType "swiss"]
[EventCountry "IND"]
[SourceTitle "playchess.com"]
[Source "ChessBase"]
[SourceQuality "1"]
[TimeControl "40/5400+30:1800+30"]

1. e4 {[%emt 0:01:40]} g6 {[%emt 0:02:39]} 2. d4 {[%emt 0:00:15]} Bg7 {[%emt 0:00:15]} 3. Nc3 {[%emt 0:00:18]} d6 {[%emt 0:00:52]} 4. f4 {[%emt 0:01:31]} Nf6 {[%emt 0:03:48]} 5. Nf3 {[%emt 0:00:29]} O-O {[%emt 0:02:49]} 6. Be3 {[%emt 0:07:54]} b6 {[%emt 0:01:09]} 7. Qd2 {[%emt 0:00:34]} Bb7 {[%emt 0:02:53]} 8. Bd3 {[%emt 0:08:41]} c5 {[%emt 0:02:19]} 9. e5 {[%emt 0:22:00]} cxd4 {[%emt 0:07:04]} 10. Bxd4 {[%emt 0:00:28]} dxe5 {[%emt 0:00:55]} 11. fxe5 {[%emt 0:00:41]} Ne8 {[%emt 0:11:57]} 12. Qe3 {[%emt 0:13:24]} Nc6 {[%emt 0:05:22]} 13. O-O-O {[%emt 0:01:24]} Nxd4 {[%emt 0:03:48]} 14. Nxd4 {[%emt 0:00:11]} Qc7 {[%emt 0:06:51]} 15. Nf3 {[%emt 0:09:53]} Bxf3 {[%emt 0:05:18]} 16. Qxf3 {[%emt 0:00:19]} Rd8 {[%emt 0:00:35]} 17. Rhe1 {[%emt 0:05:50]} e6 {[%emt 0:09:25]} 18. Qe3 {[%emt 0:01:59]} Qe7 {[%emt 0:01:29]} 19. Qf4 {[%emt 0:09:40]} Nc7 {[%emt 0:03:17]} 20. h4 {[%emt 0:00:18]} Nd5 {[%emt 0:01:11]} 21. Nxd5 {[%emt 0:00:03]} Rxd5 {[%emt 0:00:08]} 22. h5 {[%emt 0:01:07]} Rfd8 {[%emt 0:02:06]} 23. hxg6 {[%emt 0:00:08]} hxg6 {[%emt 0:00:28]} 24. Kb1 {[%emt 0:01:03]} Qc7 {[%emt 0:04:09]} 25. Qh4 {[%emt 0:00:42]} R8d7 {[%emt 0:04:02]} 26. Re4 {[%emt 0:04:47]} Rxe5 {[%emt 0:01:21]} 27. Rh1 {[%emt 0:00:09]} Rh5 {[%emt 0:02:13]} 28. Qe1 {[%emt 0:00:01]} Rxh1 {[%emt 0:00:12]} 29. Qxh1 {[%emt 0:00:01]} Qd8 {[%emt 0:00:41]} 30. g4 {[%emt 0:00:36]} Qf6 {[%emt 0:04:28]} 31. Qc1 {[%emt 0:00:04]} Rd5 {[%emt 0:00:36]} 32. a3 {[%emt 0:01:11]} Rd4 {[%emt 0:01:46]} 33. g5 {[%emt 0:01:05]} Qd8 {[%emt 0:00:06]} 34. Qe3 {[%emt 0:00:56]} Rxe4 {[%emt 0:00:50]} 35. Qxe4 {[%emt 0:00:04]} Qxg5 {[%emt 0:02:40]} 36. Qa8+ {[%emt 0:00:05]} Kh7 {[%emt 0:00:15]} 37. Qxa7 {[%emt 0:00:52]} Qg1+ {[%emt 0:00:34] c3 [%clk 0:09:03] Qd4 [%clk 0:07:13] Qxb6 [%clk 0:39:50] Qxd3+ [%clk 0:36:50]} 0-1

[Event "IIFL Wealth 4th Mumbai GM"]
[Site "Mumbai"]
[Date "2018.12.30"]
[Round "1"]
[White "Patil, Pratik"]
[Black "Sundararajan, Kidambi"]
[Result "0-1"]
[ECO "C41"]
[WhiteElo "2178"]
[BlackElo "2458"]
[Annotator "ChessBase"]
[PlyCount "50"]
[EventDate "2018.12.30"]
[EventType "swiss"]
[EventCountry "IND"]
[SourceTitle "playchess.com"]
[Source "ChessBase"]
[SourceQuality "1"]
[TimeControl "40/5400+30:1800+30"]

1. e4 {[%emt 0:00:00]} e5 {[%emt 0:00:00]} 2. Nf3 {[%emt 0:00:00]} d6 {[%emt 0:00:01]} 3. Bc4 {[%emt 0:00:14]} Nf6 {[%emt 0:02:03]} 4. Ng5 {[%emt 0:17:56]} d5 {[%emt 0:00:41]} 5. exd5 {[%emt 0:00:12]} h6 {[%emt 0:01:43]} 6. Nf3 {[%emt 0:00:05]} e4 {[%emt 0:02:53]} 7. Qe2 {[%emt 0:00:36]} Bd6 {[%emt 0:06:59]} 8. d3 {[%emt 0:04:00]} O-O {[%emt 0:03:29]} 9. dxe4 {[%emt 0:00:13]} Nxe4 {[%emt 0:00:15]} 10. O-O {[%emt 0:03:24]} Re8 {[%emt 0:01:06]} 11. Re1 {[%emt 0:11:30]} Bg4 {[%emt 0:04:00]} 12. Qd3 {[%emt 0:07:06]} f5 {[%emt 0:08:45]} 13. Nc3 {[%emt 0:10:28]} Nd7 {[%emt 0:04:44]} 14. Nxe4 {[%emt 0:09:10]} Rxe4 {[%emt 0:04:11]} 15. Rxe4 {[%emt 0:09:26]} Nc5 {[%emt 0:00:43]} 16. Re8+ {[%emt 0:17:51]} Qxe8 {[%emt 0:00:12]} 17. Qe3 {[%emt 0:00:01]} Qh5 {[%emt 0:04:48]} 18. h3 {[%emt 0:00:48]} Re8 {[%emt 0:04:21]} 19. hxg4 {[%emt 0:01:02]} fxg4 {[%emt 0:00:09]} 20. Ne5 {[%emt 0:01:19]} Rxe5 {[%emt 0:00:44]} 21. Qc3 {[%emt 0:00:10]} Ne4 {[%emt 0:08:30]} 22. Qd3 {[%emt 0:02:28]} Nxf2 {[%emt 0:04:24]} 23. Kxf2 {[%emt 0:00:16]} g3+ {[%emt 0:01:57]} 24. Qxg3 {[%emt 0:00:05]} Rf5+ {[%emt 0:03:42]} 25. Qf3 {[%emt 0:00:14]} Rxf3+ {[%emt 0:00:25]} 0-1

[Event "IIFL Wealth 4th Mumbai GM"]
[Site "Mumbai"]
[Date "2018.12.30"]
[Round "1"]
[White "Thrish Karthik"]
[Black "Lugovskoy, Maxim"]
[Result "0-1"]
[ECO "A06"]
[WhiteElo "2168"]
[BlackElo "2445"]
[Annotator "NA RC"]
[PlyCount "31"]
[EventDate "2018.12.30"]
[EventType "swiss"]
[EventCountry "IND"]
[SourceTitle "playchess.com"]
[Source "ChessBase"]
[SourceQuality "1"]
[TimeControl "40/5400+30:1800+30"]

1. Nf3 d5 2. c4 e6 3. b3 c5 4. cxd5 exd5 5. Bb2 Nc6 6. g3 d4 7. Bg2 Nf6 8. O-O Be7 9. d3 O-O 10. Nbd2 Re8 11. Nc4 Nd5 12. e4 dxe3 13. fxe3 Nf6 14. d4 cxd4 15. Nxd4 Nxd4 16. Qxd4 0-1

[Event "IIFL Wealth 4th Mumbai GM"]
[Site "Mumbai"]
[Date "2018.12.30"]
[Round "1"]
[White "Snehal, Bhosale"]
[Black "Rajesh, V A V"]
[Result "1/2-1/2"]
[ECO "D85"]
[WhiteElo "2135"]
[BlackElo "2402"]
[Annotator "NA"]
[PlyCount "97"]
[EventDate "2018.12.30"]
[EventType "swiss"]
[EventCountry "IND"]
[SourceTitle "playchess.com"]
[Source "ChessBase"]
[SourceQuality "1"]
[TimeControl "40/5400+30:1800+30"]

1. d4 {[%emt 0:00:00]} Nf6 {[%emt 0:00:00]} 2. c4 {[%emt 0:00:00]} g6 {[%emt 0:00:05]} 3. Nc3 {[%emt 0:00:01]} d5 {[%emt 0:00:15]} 4. cxd5 {[%emt 0:00:58]} Nxd5 {[%emt 0:00:05]} 5. Bd2 {[%emt 0:00:15]} Bg7 {[%emt 0:00:39]} 6. e4 {[%emt 0:00:14]} Nb6 {[%emt 0:00:14]} 7. Be3 {[%emt 0:00:35]} O-O {[%emt 0:03:56]} 8. f4 {[%emt 0:00:25]} f5 {[%emt 0:03:14]} 9. Qb3+ {[%emt 0:09:42]} Kh8 {[%emt 0:00:20]} 10. e5 {[%emt 0:01:35]} e6 {[%emt 0:00:32]} 11. Nf3 {[%emt 0:22:41]} Nc6 {[%emt 0:00:18]} 12. Rc1 {[%emt 0:00:20]} a5 {[%emt 0:01:53]} 13. Bb5 {[%emt 0:07:38]} Ne7 {[%emt 0:04:50]} 14. O-O {[%emt 0:00:50]} c6 {[%emt 0:06:34]} 15. Be2 {[%emt 0:03:03]} a4 {[%emt 0:01:13]} 16. Qc2 {[%emt 0:04:05]} Bd7 {[%emt 0:00:55]} 17. Ne1 {[%emt 0:05:11]} Nbd5 {[%emt 0:01:00]} 18. Rf3 {[%emt 0:08:07]} Nxe3 {[%emt 0:03:21]} 19. Rxe3 {[%emt 0:00:04]} Qb6 {[%emt 0:00:10]} 20. Kh1 {[%emt 0:03:45]} Rfd8 {[%emt 0:00:57]} 21. Rd1 {[%emt 0:05:10]} Nd5 {[%emt 0:02:21]} 22. Rf3 {[%emt 0:03:45]} Nb4 {[%emt 0:04:21]} 23. Qd2 {[%emt 0:02:33]} Be8 {[%emt 0:00:41]} 24. Bc4 {[%emt 0:01:10]} Nd5 {[%emt 0:04:24]} 25. Rh3 {[%emt 0:01:35]} h6 {[%emt 0:12:21]} 26. a3 {[%emt 0:01:18]} Bf7 {[%emt 0:00:55]} 27. Qf2 {[%emt 0:01:57]} Kg8 {[%emt 0:02:50]} 28. Nd3 {[%emt 0:01:12]} Bf8 {[%emt 0:00:35]} 29. Ba2 {[%emt 0:01:43]} h5 {[%emt 0:15:03]} 30. Rb1 {[%emt 0:04:41]} Ra5 {[%emt 0:04:38]} 31. Ne2 {[%emt 0:02:00]} Be7 {[%emt 0:01:39]} 32. Rc1 {[%emt 0:00:36]} Kf8 {[%emt 0:01:46]} 33. Ng1 {[%emt 0:02:09]} Nc7 {[%emt 0:03:37]} 34. Nc5 {[%emt 0:01:56]} Rb5 {[%emt 0:05:53]} 35. Rc2 {[%emt 0:05:06]} Bxc5 {[%emt 0:03:45]} 36. dxc5 {[%emt 0:00:05]} Qa5 {[%emt 0:00:09]} 37. Rhc3 {[%emt 0:00:17]} Rd1 {[%emt 0:06:08]} 38. Rd2 {[%emt 0:01:42]} Ra1 {[%emt 0:00:36]} 39. Rd8+ {[%emt 0:00:28]} Ne8 {[%emt 0:00:07]} 40. Qd4 {[%emt 0:00:00]} Rxa2 {[%emt 0:00:00]} 41. Qd6+ {[%emt 0:05:16]} Kg7 {[%emt 0:05:13]} 42. Rxe8 {[%emt 0:08:23]} Bxe8 {[%emt 0:00:07]} 43. Qe7+ {[%emt 0:00:06]} Bf7 {[%emt 0:00:50]} 44. Rd3 {[%emt 0:00:16]} Ra1 {[%emt 0:01:35]} 45. h4 {[%emt 0:00:47]} Rxb2 {[%emt 0:04:21]} 46. Qf6+ {[%emt 0:14:01]} Kg8 {[%emt 0:00:08]} 47. Rd8+ {[%emt 0:00:04]} Qxd8 {[%emt 0:00:11]} 48. Qxd8+ {[%emt 0:00:04]} Kg7 {[%emt 0:00:07]} 49. Kh2 {[%emt 0:02:45]} 1/2-1/2

[Event "IIFL Wealth 4th Mumbai GM"]
[Site "Mumbai"]
[Date "2018.12.30"]
[Round "1"]
[White "Soham Datar"]
[Black "Ravi, Teja S."]
[Result "1/2-1/2"]
[ECO "A09"]
[WhiteElo "2134"]
[BlackElo "2396"]
[Annotator "NA"]
[PlyCount "67"]
[EventDate "2018.12.30"]
[EventType "swiss"]
[EventCountry "IND"]
[SourceTitle "playchess.com"]
[Source "ChessBase"]
[SourceQuality "1"]
[TimeControl "40/5400+30:1800+30"]

1. Nf3 d5 2. c4 d4 3. b4 f6 4. Na3 e5 5. Nc2 Be6 6. d3 c5 7. bxc5 Bxc5 8. g3 Nc6 9. Bg2 Nge7 10. O-O O-O 11. Rb1 Qd7 12. Nd2 f5 13. Ba3 Bxa3 14. Nxa3 a6 15. Rb6 Nc8 16. Rb1 N8e7 17. Rb6 Nc8 18. Rb1 N8e7 19. Rb6 Ra7 20. Rb2 b5 21. cxb5 axb5 22. Nxb5 Rxa2 23. Rxa2 Bxa2 24. Qa4 Bd5 25. Bxd5+ Qxd5 26. Na7 Nxa7 27. Qxa7 Nc8 28. Qc7 Nd6 29. Qd7 Rf7 30. Qd8+ Rf8 31. Qd7 Rf7 32. Qd8+ Rf8 33. Qd7 Rf7 34. Qd8+ 1/2-1/2

[Event "IIFL Wealth 4th Mumbai GM"]
[Site "Mumbai"]
[Date "2018.12.30"]
[Round "1"]
[White "Pranesh M"]
[Black "Raahul V S"]
[Result "1-0"]
[ECO "C56"]
[WhiteElo "2125"]
[BlackElo "2381"]
[Annotator "NA"]
[PlyCount "117"]
[EventDate "2018.12.30"]
[EventType "swiss"]
[EventCountry "IND"]
[SourceTitle "playchess.com"]
[Source "ChessBase"]
[SourceQuality "1"]
[TimeControl "40/5400+30:1800+30"]

1. e4 {[%emt 0:00:00]} e5 {[%emt 0:00:00]} 2. Nf3 {[%emt 0:00:00]} Nc6 {[%emt 0:00:00]} 3. d4 {[%emt 0:00:00]} exd4 {[%emt 0:00:00]} 4. Bc4 {[%emt 0:00:00]} Nf6 {[%emt 0:00:03]} 5. O-O {[%emt 0:00:00]} Nxe4 {[%emt 0:00:11]} 6. Re1 {[%emt 0:00:00]} d5 {[%emt 0:00:01]} 7. Bxd5 {[%emt 0:00:00]} Qxd5 {[%emt 0:00:02]} 8. Nc3 {[%emt 0:00:00]} Qh5 {[%emt 0:00:32]} 9. Nxe4 {[%emt 0:00:00]} Be6 {[%emt 0:00:02]} 10. Bg5 {[%emt 0:00:11]} Bb4 {[%emt 0:03:01]} 11. Nxd4 {[%emt 0:01:22]} Qxd1 {[%emt 0:00:14]} 12. Rexd1 {[%emt 0:00:06]} Nxd4 {[%emt 0:00:12]} 13. Rxd4 {[%emt 0:00:04]} Ba5 {[%emt 0:00:02]} 14. Nc5 {[%emt 0:00:25]} Bb6 {[%emt 0:02:15]} 15. Nxe6 {[%emt 0:00:05]} fxe6 {[%emt 0:00:03]} 16. Rd2 {[%emt 0:01:20]} h6 {[%emt 0:00:55]} 17. Bh4 {[%emt 0:00:46]} O-O {[%emt 0:00:06]} 18. Re1 {[%emt 0:00:14]} g5 {[%emt 0:00:54]} 19. Bg3 {[%emt 0:00:07]} Rad8 {[%emt 0:00:02]} 20. Red1 {[%emt 0:02:01]} c6 {[%emt 0:10:01]} 21. Rxd8 {[%emt 0:01:14]} Rxd8 {[%emt 0:00:11]} 22. Rxd8+ {[%emt 0:00:07]} Bxd8 {[%emt 0:00:01]} 23. f3 {[%emt 0:00:37]} Kf7 {[%emt 0:00:27]} 24. Kf2 {[%emt 0:03:59]} Kg6 {[%emt 0:01:17]} 25. Bd6 {[%emt 0:00:41]} Kf5 {[%emt 0:02:13]} 26. g4+ {[%emt 0:00:18]} Kf6 {[%emt 0:00:04]} 27. Ke3 {[%emt 0:00:08]} Ba5 {[%emt 0:04:31]} 28. b4 {[%emt 0:00:10]} Bb6+ {[%emt 0:00:17]} 29. Ke4 {[%emt 0:00:02]} a5 {[%emt 0:02:34]} 30. a3 {[%emt 0:01:07]} a4 {[%emt 0:04:08]} 31. c4 {[%emt 0:00:25]} Bf2 {[%emt 0:02:18]} 32. c5 {[%emt 0:00:02]} Be1 {[%emt 0:00:00]} 33. Be5+ {[%emt 0:00:11]} Kf7 {[%emt 0:00:00]} 34. Kd3 {[%emt 0:00:34]} Kg6 {[%emt 0:01:01]} 35. h3 {[%emt 0:00:55]} h5 36. Kc4 hxg4 {[%emt 0:04:23]} 37. hxg4 {[%emt 0:00:34]} Kf7 {[%emt 0:00:14]} 38. b5 {[%emt 0:00:55]} Ke7 {[%emt 0:00:38]} 39. bxc6 {[%emt 0:00:31]} bxc6 {[%emt 0:00:01]} 40. Bc3 {[%emt 0:00:00]} Bf2 {[%emt 0:00:00]} 41. Kb4 {[%emt 0:01:12]} Kf7 {[%emt 0:00:53]} 42. Be5 {[%emt 0:00:20]} Be3 {[%emt 0:00:36]} 43. Bd6 {[%emt 0:00:23]} e5 {[%emt 0:00:05]} 44. Bxe5 {[%emt 0:01:08]} Ke6 {[%emt 0:00:22]} 45. Bd6 {[%emt 0:00:08]} Kd5 {[%emt 0:00:05]} 46. Kxa4 {[%emt 0:00:10]} Kc4 {[%emt 0:00:14]} 47. Ka5 {[%emt 0:01:32]} Bxc5 {[%emt 0:00:26]} 48. Bxc5 {[%emt 0:00:15]} Kxc5 {[%emt 0:00:01]} 49. a4 {[%emt 0:00:00]} Kd4 {[%emt 0:00:02]} 50. Kb6 {[%emt 0:00:19]} c5 {[%emt 0:00:01]} 51. a5 {[%emt 0:00:00]} c4 {[%emt 0:00:01]} 52. a6 {[%emt 0:00:01]} c3 {[%emt 0:00:01]} 53. a7 {[%emt 0:00:01]} c2 {[%emt 0:00:01]} 54. a8=Q {[%emt 0:00:01]} c1=Q {[%emt 0:00:18]} 55. Qe4+ {[%emt 0:00:17]} Kc3 {[%emt 0:00:10]} 56. Qc6+ {[%emt 0:00:09]} Kd2 {[%emt 0:00:10]} 57. Qxc1+ {[%emt 0:00:04]} Kxc1 {[%emt 0:00:03]} 58. Kc5 {[%emt 0:00:05]} Kd2 {[%emt 0:00:10]} 59. Kd4 {[%emt 0:00:04]} 1-0

[Event "IIFL Wealth 4th Mumbai GM"]
[Site "Mumbai"]
[Date "2018.12.30"]
[Round "1"]
[White "Tarun Kanyamarala"]
[Black "Sammed Jaykumar, Shete"]
[Result "0-1"]
[ECO "A50"]
[WhiteElo "2120"]
[BlackElo "2378"]
[Annotator "NA"]
[PlyCount "64"]
[EventDate "2018.12.30"]
[EventType "swiss"]
[EventCountry "IND"]
[SourceTitle "playchess.com"]
[Source "ChessBase"]
[SourceQuality "1"]
[TimeControl "40/5400+30:1800+30"]

1. d4 Nf6 2. c4 g6 3. f3 c5 4. d5 Bg7 5. e4 d6 6. Nc3 O-O 7. Nge2 e6 8. Ng3 exd5 9. cxd5 a6 10. a4 h5 11. Bg5 {[%emt 0:09:56]} Nbd7 {[%emt 0:01:20]} 12. Qd2 {[%emt 0:00:31]} h4 {[%emt 0:00:53]} 13. Nge2 {[%emt 0:07:34]} h3 {[%emt 0:00:12]} 14. g4 {[%emt 0:15:22]} Ne5 {[%emt 0:00:33]} 15. Ng1 {[%emt 0:00:11]} Bd7 {[%emt 0:06:08]} 16. f4 {[%emt 0:10:57]} Nexg4 {[%emt 0:01:18]} 17. Bxh3 {[%emt 0:01:13]} b5 {[%emt 0:04:51]} 18. Bg2 {[%emt 0:10:30]} b4 {[%emt 0:02:29]} 19. Nce2 {[%emt 0:01:19]} Qe8 {[%emt 0:00:49]} 20. Qd3 {[%emt 0:04:04]} c4 {[%emt 0:02:15]} 21. Qf3 {[%emt 0:00:57]} Nh7 {[%emt 0:01:42]} 22. Bh4 {[%emt 0:03:40]} f5 {[%emt 0:00:54]} 23. Rc1 {[%emt 0:01:23]} Rc8 {[%emt 0:01:58]} 24. b3 {[%emt 0:01:43]} cxb3 {[%emt 0:01:54]} 25. Rxc8 {[%emt 0:00:07]} b2 {[%emt 0:00:57]} 26. Qd3 {[%emt 0:01:56]} Qxc8 {[%emt 0:00:17]} 27. Nh3 {[%emt 0:01:01]} Qc1+ {[%emt 0:00:29]} 28. Nxc1 {[%emt 0:00:07]} bxc1=Q+ {[%emt 0:00:06]} 29. Ke2 {[%emt 0:00:15]} Qb2+ {[%emt 0:00:15]} 30. Qd2 {[%emt 0:00:08]} Rc8 {[%emt 0:00:48]} 31. Qxb2 {[%emt 0:00:40]} Bxb2 {[%emt 0:00:06]} 32. Kd3 {[%emt 0:01:12]} Bxa4 {[%emt 0:00:21] Kd4} 0-1

[Event "IIFL Wealth 4th Mumbai GM"]
[Site "Mumbai"]
[Date "2018.12.30"]
[Round "1"]
[White "Prajesh R"]
[Black "Anuj Shrivatri"]
[Result "0-1"]
[ECO "E91"]
[WhiteElo "2102"]
[BlackElo "2357"]
[Annotator "NA"]
[PlyCount "73"]
[EventDate "2018.12.30"]
[EventType "swiss"]
[EventCountry "IND"]
[SourceTitle "playchess.com"]
[Source "ChessBase"]
[SourceQuality "1"]
[TimeControl "40/5400+30:1800+30"]

1. d4 {[%emt 0:00:00]} Nf6 {[%emt 0:00:00]} 2. c4 {[%emt 0:00:06]} g6 {[%emt 0:00:00]} 3. Nc3 {[%emt 0:00:03]} Bg7 {[%emt 0:00:00]} 4. e4 {[%emt 0:00:05]} d6 {[%emt 0:00:00]} 5. Nf3 {[%emt 0:00:05]} O-O {[%emt 0:00:00]} 6. Be2 {[%emt 0:00:04]} Na6 {[%emt 0:00:04]} 7. Bf4 {[%emt 0:03:53]} Nh5 {[%emt 0:06:41]} 8. Qd2 {[%emt 0:00:40]} Nxf4 {[%emt 0:01:19]} 9. Qxf4 {[%emt 0:00:04]} Qe8 {[%emt 0:07:27]} 10. c5 e5 {[%emt 0:12:35]} 11. dxe5 {[%emt 0:17:04]} dxe5 {[%emt 0:09:00]} 12. Qe3 {[%emt 0:22:04]} Qc6 {[%emt 0:13:03]} 13. Bxa6 {[%emt 0:15:33]} Qxa6 {[%emt 0:00:50]} 14. Qe2 {[%emt 0:04:05]} b6 {[%emt 0:09:31]} 15. Qxa6 {[%emt 0:20:08]} Bxa6 {[%emt 0:00:57]} 16. O-O-O {[%emt 0:00:12]} bxc5 {[%emt 0:12:30]} 17. Rd5 {[%emt 0:03:03]} f5 {[%emt 0:01:46]} 18. Re1 {[%emt 0:03:07]} Rad8 {[%emt 0:01:50]} 19. exf5 {[%emt 0:02:15]} Rxd5 {[%emt 0:03:55]} 20. Nxd5 {[%emt 0:00:13]} Bb7 {[%emt 0:00:14]} 21. Rd1 {[%emt 0:05:01]} e4 {[%emt 0:01:52]} 22. Ng5 {[%emt 0:00:21]} Bh6 {[%emt 0:08:12]} 23. h4 {[%emt 0:00:01]} Bxd5 {[%emt 0:02:51]} 24. Rxd5 {[%emt 0:00:02]} Rxf5 {[%emt 0:00:09]} 25. Rd8+ {[%emt 0:00:26]} Kg7 {[%emt 0:00:11]} 26. Rd7+ {[%emt 0:01:35]} Kf6 {[%emt 0:00:10]} 27. Kd1 {[%emt 0:02:36]} Bxg5 {[%emt 0:00:19]} 28. hxg5+ {[%emt 0:00:01]} Rxg5 {[%emt 0:00:39]} 29. Rxh7 {[%emt 0:00:02]} Rxg2 {[%emt 0:00:30]} 30. Ke2 {[%emt 0:00:09]} Rg1 {[%emt 0:00:55]} 31. Rxc7 {[%emt 0:01:00]} Rb1 {[%emt 0:00:13]} 32. Rc6+ {[%emt 0:01:07]} Ke5 {[%emt 0:03:25]} 33. Rxc5+ {[%emt 0:00:08]} Kf4 {[%emt 0:00:05]} 34. Rc2 {[%emt 0:01:13]} a5 {[%emt 0:00:04]} 35. b3 {[%emt 0:00:27]} g5 {[%emt 0:00:04]} 36. Rd2 {[%emt 0:00:31]} g4 {[%emt 0:00:52]} 37. Rc2 {[%emt 0:00:03]} 0-1